fUST/lending_fUST_20241126
["ID","MTS","AMOUNT","RATE_DAILY","PERIOD"]
[343302150,1732550401417,479958.93792977,0.00025,5]
[343302297,1732550795190,-215.0,0.00022,2]
[343302298,1732550795211,-20.7522136,0.00022027,2]
[343302299,1732550830391,-145.7999174,0.00022027,2]
[343302300,1732550830420,-215.0,0.00022192,2]
[343302301,1732550830443,-300.0,0.00022406,2]
[343302302,1732550830468,-300.0,0.00022406,2]
[343302303,1732550830492,-35468.0,0.00022406,2]
[343302304,1732550830519,-24900.0,0.00022408,2]
[343302305,1732550830542,-215.0,0.00023014,2]
[343302306,1732550830568,-223.3183807,0.00023341,2]
[343302307,1732550830593,-1147.18901316,0.00023426,2]
[343302308,1732550830618,-12421.3883534,0.00023426,2]
[343302309,1732550830645,-250.0,0.0002344,2]
[343302310,1732550830676,-1720.2445619,0.00023808,2]
[343302311,1732550830705,-152.0,0.00023915,2]
[343302312,1732550830729,-215.0,0.00024164,2]
[343302313,1732550830753,-420.0,0.00024338,2]
[343302314,1732550830778,-420.0,0.00024647,2]
[343302315,1732550830802,-210.52129162,0.0002489,2]
[343302316,1732550830829,-500.0,0.00024897,2]
[343302317,1732550830852,-500.0,0.00024897,2]
[343302318,1732550830880,-500.0,0.00024897,2]
[343302319,1732550830907,-500.0,0.00024897,2]
[343302320,1732550830934,-409.97135828,0.00024897,2]
[343302321,1732550830962,-500.0,0.00024897,2]
[343302322,1732550830987,-500.0,0.00024897,2]
[343302323,1732550831012,-500.0,0.00024897,2]
[343302324,1732550831040,-500.0,0.00024897,2]
[343302325,1732550831066,-500.0,0.00024897,2]
[343302326,1732550831091,-500.0,0.00024897,2]
[343302327,1732550831114,-500.0,0.00024897,2]
[343302328,1732550831138,-500.0,0.00024897,2]
[343302329,1732550831165,-500.0,0.00024897,2]
[343302330,1732550831192,-500.0,0.00024897,2]
[343302331,1732550831221,-500.0,0.00024897,2]
[343302332,1732550831247,-500.0,0.00024897,2]
[343302333,1732550831276,-500.0,0.00024897,2]
[343302334,1732550831307,-317.69576312,0.00024897,2]
[343302335,1732550831333,-500.0,0.00024897,2]
[343302336,1732550831360,-500.0,0.00024897,2]
[343302337,1732550831388,-500.0,0.00024897,2]
[343302338,1732550831425,-500.0,0.00024897,2]
[343302339,1732550831457,-500.0,0.00024897,2]
[343302340,1732550831487,-500.0,0.00024897,2]
[343302341,1732550831515,-500.0,0.00024897,2]
[343302342,1732550831542,-500.0,0.00024897,2]
[343302343,1732550831569,-500.0,0.00024897,2]
[343302344,1732550831598,-500.0,0.00024897,2]
[343302345,1732550831627,-433.8555734,0.00024897,2]
[343302346,1732550831666,-500.0,0.00024897,2]
[343302347,1732550831694,-250.0,0.00024897,2]
[343302348,1732550831723,-500.0,0.00024897,2]
[343302349,1732550831750,-500.0,0.00024897,2]
[343302350,1732550831781,-500.0,0.00024897,2]
[343302351,1732550831809,-500.0,0.00024897,2]
[343302352,1732550831836,-500.0,0.00024897,2]
[343302353,1732550831862,-500.0,0.00024897,2]
[343302354,1732550831891,-500.0,0.00024897,2]
[343302355,1732550831920,-519.5505219,0.00024897,2]
[343302356,1732550831946,-500.0,0.00024897,2]
[343302357,1732550831972,-500.0,0.00024897,2]
[343302358,1732550831998,-500.0,0.00024897,2]
[343302359,1732550832024,-500.0,0.00024897,2]
[343302360,1732550832051,-500.0,0.00024897,2]
[343302361,1732550832078,-337.01935233,0.00024897,2]
[343302362,1732550832102,-500.0,0.00024897,2]
[343302363,1732550832128,-500.0,0.00024897,2]
[343302364,1732550832155,-500.0,0.00024897,2]
[343302365,1732550832185,-500.0,0.00024897,2]
[343302366,1732550832211,-500.0,0.00024897,2]
[343302367,1732550832239,-500.0,0.00024897,2]
[343302368,1732550832268,-500.0,0.00024897,2]
[343302369,1732550832295,-500.0,0.00024897,2]
[343302370,1732550832323,-500.0,0.00024897,2]
[343302371,1732550832348,-500.0,0.00024897,2]
[343302372,1732550832373,-500.0,0.00024897,2]
[343302373,1732550832395,-500.0,0.00024897,2]
[343302374,1732550832424,-500.0,0.00024897,2]
[343302375,1732550832445,-500.0,0.00024897,2]
[343302376,1732550832466,-500.0,0.00024897,2]
[343302377,1732550832489,-500.0,0.00024897,2]
[343302378,1732550832511,-500.0,0.00024897,2]
[343302379,1732550832533,-500.0,0.00024897,2]
[343302380,1732550832554,-500.0,0.00024897,2]
[343302381,1732550832575,-500.0,0.00024897,2]
[343302382,1732550832596,-500.0,0.00024898,2]
[343302383,1732550832617,-1579.79,0.00024898,2]
[343302384,1732550832639,-1184.81,0.00024898,2]
[343302385,1732550832659,-500.0,0.00024898,2]
[343302386,1732550832685,-500.0,0.00024898,2]
[343302387,1732550832838,-1396.60074732,0.000249,2]
[343302388,1732550832861,-6417.04656504,0.000249,2]
[343302389,1732550832881,-500.0,0.00024973,2]
[343302390,1732550832902,-158.55774082,0.00024973,2]
[343302391,1732550832928,-160.04042246,0.00024973,2]
[343302392,1732550832949,-160.03997109,0.00024973,2]
[343302393,1732550832968,-360.10880151,0.00024973,2]
[343302394,1732550833003,-500.0,0.00024973,2]
[343302395,1732550833027,-176.91,0.00024987,2]
[343302396,1732550833051,-502.99,0.00024987,10]
[343302397,1732550833074,-959.17,0.00024987,10]
[343302398,1732550833096,-799.3,0.00024987,10]
[343302399,1732550833118,-666.09,0.00024987,10]
[343302400,1732550833139,-500.0,0.00024998,2]
[343302401,1732550833159,-500.0,0.00024998,2]
[343302402,1732550833184,-500.0,0.00024998,2]
[343302403,1732550833210,-500.0,0.00024998,2]
[343302404,1732550833234,-500.0,0.00024998,2]
[343302405,1732550833258,-533.92163532,0.00024998,2]
[343302406,1732550833279,-500.0,0.00024998,2]
[343302407,1732550833308,-500.0,0.00024998,2]
[343302408,1732550833331,-500.0,0.00024998,2]
[343302409,1732550833356,-572.20364236,0.00024998,2]
[343302410,1732550833378,-500.0,0.00024998,2]
[343302411,1732550833401,-530.44377022,0.00024998,2]
[343302412,1732550833426,-500.0,0.00024998,2]
[343302413,1732550833450,-500.0,0.00024998,2]
[343302414,1732550833471,-500.0,0.00024998,2]
[343302415,1732550833493,-500.0,0.00024998,2]
[343302416,1732550833515,-500.0,0.00024998,2]
[343302417,1732550833537,-500.0,0.00024998,2]
[343302418,1732550833558,-500.0,0.00024998,2]
[343302419,1732550833579,-200.0,0.00024998,2]
[343302420,1732550833600,-500.0,0.00024998,2]
[343302421,1732550833624,-5834.31,0.00024998,2]
[343302422,1732550833645,-500.0,0.00024998,2]
[343302423,1732550833672,-503.5850989,0.00024998,2]
[343302424,1732550833694,-500.0,0.00024998,2]
[343302425,1732550833716,-1232.90752744,0.00024998,2]
[343302426,1732550833738,-500.0,0.00024998,2]
[343302427,1732550833759,-500.0,0.00024998,2]
[343302428,1732550833781,-500.0,0.00024998,2]
[343302429,1732550833802,-500.0,0.00024998,2]
[343302430,1732550833823,-500.0,0.00024998,2]
[343302431,1732550833845,-500.0,0.00024998,2]
[343302432,1732550833866,-500.0,0.00024998,2]
[343302433,1732550833890,-500.0,0.00024998,2]
[343302434,1732550833911,-500.0,0.00024998,2]
[343302435,1732550833935,-500.0,0.00024998,2]
[343302436,1732550833957,-500.0,0.00024998,2]
[343302437,1732550833978,-500.0,0.00024998,2]
[343302438,1732550834000,-500.0,0.00024998,2]
[343302439,1732550834021,-500.0,0.00024998,2]
[343302440,1732550834043,-500.0,0.00024998,2]
[343302441,1732550834064,-500.0,0.00024998,2]
[343302442,1732550834084,-500.0,0.00024998,2]
[343302443,1732550834105,-500.0,0.00024998,2]
[343302444,1732550834125,-500.0,0.00024998,2]
[343302445,1732550834146,-500.0,0.00024998,2]
[343302446,1732550834173,-500.0,0.00024998,2]
[343302447,1732550834196,-500.0,0.00024998,2]
[343302448,1732550834219,-500.0,0.00024998,2]
[343302449,1732550834245,-500.0,0.00024998,2]
[343302450,1732550834266,-500.0,0.00024998,2]
[343302451,1732550834289,-500.0,0.00024998,2]
[343302452,1732550834311,-500.0,0.00024998,2]
[343302453,1732550834331,-500.0,0.00024998,2]
[343302454,1732550834353,-500.0,0.00024998,2]
[343302455,1732550834375,-500.0,0.00024998,2]
[343302456,1732550834399,-500.0,0.00024998,2]
[343302457,1732550834430,-500.0,0.00024998,2]
[343302458,1732550834451,-500.0,0.00024999,2]
[343302459,1732550834472,-500.0,0.00024999,2]
[343302460,1732550834493,-441.22534347,0.00024999,2]
[343302461,1732550834513,-227.95198963,0.00024999,2]
[343302462,1732550834534,-259.08446986,0.00024999,2]
[343302463,1732550834554,-272.20917518,0.00024999,2]
[343302464,1732550834575,-190.54642262,0.00024999,2]
[343302465,1732550834595,-1147.18901316,0.00025,2]
[343302466,1732550834616,-1147.18901316,0.00025,2]
[343302467,1732550834638,-51225.70548757,0.00025,5]
[343302468,1732550848768,162.029413,0.00013973,2]
[343302475,1732550968095,-500.0,0.00022406,2]
[343302476,1732550968117,-1610.95,0.00022406,2]
[343302477,1732550968139,-500.0,0.0002268,2]
[343302478,1732550968159,-1610.95,0.0002268,2]
[343302479,1732550968179,-300.0,0.00022953,2]
[343302480,1732550968200,-300.0,0.00022953,2]
[343302481,1732550968221,-500.0,0.00022954,2]
[343302482,1732550968242,-1610.95,0.00022954,2]
[343302483,1732550968267,-1610.95,0.00023228,2]
[343302484,1732550968287,-1610.95,0.00023502,2]
[343302485,1732550968306,-1610.95,0.00023776,2]
[343302486,1732550968327,-1610.95,0.0002405,2]
[343302487,1732550968347,-1610.95,0.00024324,2]
[343302488,1732550968367,-1610.95,0.00024598,2]
[343302489,1732550968387,-1610.95,0.00024872,2]
[343302490,1732550968413,-5971.85,0.00024898,2]
[343302491,1732550968434,-500.0,0.00024898,2]
[343302492,1732550968455,-500.0,0.00024898,2]
[343302493,1732550968476,-500.0,0.00024898,2]
[343302494,1732550968496,-500.0,0.00024898,2]
[343302495,1732550968516,-500.0,0.00024898,2]
[343302496,1732550968538,-500.0,0.00024898,2]
[343302497,1732550968558,-500.0,0.00024898,2]
[343302498,1732550968578,-500.0,0.00024898,2]
[343302499,1732550968599,-500.0,0.00024898,2]
[343302500,1732550968619,-8185.24097901,0.000249,2]
[343302501,1732550968639,-1396.60074732,0.000249,2]
[343302502,1732550968660,-420.0,0.00024918,2]
[343302503,1732550968679,-260.05408077,0.00024973,2]
[343302504,1732550968699,-500.0,0.00024973,2]
[343302505,1732550968718,-500.0,0.00024973,2]
[343302506,1732550968737,-500.0,0.00024973,2]
[343302507,1732550968757,-500.0,0.00024973,2]
[343302508,1732550968777,-160.04042246,0.00024973,2]
[343302509,1732550968798,-500.0,0.00024973,2]
[343302510,1732550968817,-500.33563402,0.00024973,2]
[343302511,1732550968836,-644.87415073,0.00024973,2]
[343302512,1732550968856,-705.2,0.0002499,3]
[343302513,1732550968876,-352.6,0.0002499,3]
[343302514,1732550968896,-176.3,0.0002499,3]
[343302515,1732550968916,-528.9,0.0002499,3]
[343302516,1732550968936,-555.07,0.0002499,10]
[343302517,1732550968957,-462.56,0.0002499,10]
[343302518,1732550968977,-385.47,0.0002499,10]
[343302519,1732550968997,-321.22,0.0002499,10]
[343302520,1732550969018,-500.0,0.00024998,2]
[343302521,1732550969039,-500.0,0.00024998,2]
[343302522,1732550969060,-500.0,0.00024998,2]
[343302523,1732550969081,-500.0,0.00024998,2]
[343302524,1732550969102,-500.0,0.00024998,2]
[343302525,1732550969123,-500.0,0.00024998,2]
[343302526,1732550969144,-500.0,0.00024998,2]
[343302527,1732550969164,-500.0,0.00024998,2]
[343302528,1732550969185,-500.0,0.00024998,2]
[343302529,1732550969205,-449.97852,0.00024998,2]
[343302530,1732550969226,-500.0,0.00024998,2]
[343302531,1732550969247,-500.0,0.00024998,2]
[343302532,1732550969271,-500.0,0.00024998,2]
[343302533,1732550969290,-500.0,0.00024998,2]
[343302534,1732550969310,-500.0,0.00024998,2]
[343302535,1732550969332,-500.0,0.00024998,2]
[343302536,1732550969353,-270.42839704,0.00024999,2]
[343302537,1732550969373,-201.9661959,0.00024999,2]
[343302538,1732550969395,-500.0,0.00024999,2]
[343302539,1732550969416,-500.0,0.00024999,2]
[343302540,1732550969436,-500.0,0.00024999,2]
[343302541,1732550969458,-279.95005799,0.00024999,2]
[343302542,1732550969479,-500.0,0.00024999,2]
[343302543,1732550969503,-500.0,0.00024999,2]
[343302544,1732550969525,-500.0,0.00024999,2]
[343302545,1732550969547,-500.0,0.00024999,2]
[343302546,1732550969568,-500.0,0.00024999,2]
[343302547,1732550969590,-500.0,0.00024999,2]
[343302548,1732550969775,-500.0,0.00024999,2]
[343302549,1732550969797,-254.28193504,0.00024999,2]
[343302550,1732550969823,-333.70193523,0.00024999,2]
[343302551,1732550969844,-23758.87549329,0.00025,5]
[343302701,1732551035757,-504.19,0.00022406,2]
[343302703,1732551035766,-500.0,0.00022406,2]
[343302704,1732551035775,-504.19,0.0002268,2]
[343302705,1732551035784,-500.0,0.0002268,2]
[343302706,1732551035794,-504.19,0.00022954,2]
[343302707,1732551035803,-500.0,0.00022954,2]
[343302708,1732551035812,-504.19,0.00023228,2]
[343302709,1732551035821,-500.0,0.00023228,2]
[343302710,1732551035831,-504.19,0.00023502,2]
[343302711,1732551035841,-500.0,0.00023502,2]
[343302712,1732551035853,-504.19,0.00023776,2]
[343302713,1732551035864,-500.0,0.00023776,2]
[343302714,1732551035873,-504.19,0.0002405,2]
[343302715,1732551035882,-500.0,0.0002405,2]
[343302716,1732551035892,-3325.4155864,0.00024228,2]
[343302717,1732551035901,-504.19,0.00024324,2]
[343302718,1732551035910,-500.0,0.00024324,2]
[343302719,1732551035919,-504.19,0.00024598,2]
[343302720,1732551035929,-500.0,0.00024598,2]
[343302721,1732551035938,-504.19,0.00024872,2]
[343302722,1732551035947,-500.0,0.00024872,2]
[343302723,1732551035956,-500.0,0.00024898,2]
[343302724,1732551035965,-500.0,0.00024898,2]
[343302725,1732551035975,-500.0,0.00024898,2]
[343302726,1732551035984,-411.36,0.0002499,3]
[343302727,1732551035994,-205.68,0.0002499,3]
[343302728,1732551036003,-267.69,0.0002499,10]
[343302729,1732551036012,-300.0,0.00024997,2]
[343302730,1732551036021,-300.0,0.00024997,2]
[343302731,1732551036031,-500.0,0.00024998,2]
[343302732,1732551036041,-500.0,0.00024998,2]
[343302733,1732551036050,-465.68436804,0.00024998,2]
[343302734,1732551036059,-500.0,0.00024998,2]
[343302735,1732551036068,-500.0,0.00024998,2]
[343302736,1732551036078,-625672.07800318,0.00025,5]
[343302737,1732551036090,-9871.508566,0.00025,5]
[343302738,1732551036105,-2290.89995,0.00025,5]
[343302739,1732551036116,-1137.88081078,0.00025,5]
[343302740,1732551036130,-1338.81259083,0.00025,5]
[343302741,1732551036141,-2241.98283095,0.00025,5]
[343302770,1732551038754,-18694.34300861,0.00025,5]
[343302771,1732551038811,-3605618.79103533,0.00025,5]
[343302772,1732551038823,-9733.2170437,0.00025,5]
[343302776,1732551040407,-723879.38653867,0.00025,5]
[343302785,1732551042123,-500.0,0.00024898,2]
[343302786,1732551042132,-617.08,0.0002499,3]
[343302787,1732551042142,-322.14,0.0002499,10]
[343302788,1732551042151,-500.0,0.00024998,2]
[343302789,1732551042161,-104079.11906983,0.00025,5]
[343302791,1732551042174,-351.97,0.00025,5]
[343302835,1732551043674,-500.0,0.00024898,2]
[343302836,1732551043683,-500.0,0.00024998,2]
[343302837,1732551043693,-5296.0892993,0.00025,5]
[343302838,1732551043705,-1091.07746212,0.00025,5]
[343302839,1732551043718,-1744.95596258,0.00025,5]
[343302840,1732551043729,-6038.21370488,0.00025,5]
[343302841,1732551043740,-2497.25670398,0.00025,5]
[343302916,1732551046734,-500.0,0.00024998,2]
[343302917,1732551046744,-10138.12469002,0.00025,5]
[343302924,1732551420475,2005.294608,0.0003,30]
[343302933,1732551520176,172.815361,0.00013973,2]
[343302936,1732551655049,4201.2911364,0.00020839,2]
[343302946,1732551838790,1352.270948,0.00020867,2]
[343302965,1732551973889,180.02510443,0.00020825,2]
[343302975,1732552045096,-1048.034422,0.00021507,2]
[343302976,1732552045119,-500.05738808,0.0002156,2]
[343302977,1732552050149,-163.67181024,0.0002156,2]
[343302978,1732552050173,-416.45780664,0.0002156,2]
[343302979,1732552050196,-176.949538,0.00021562,2]
[343302980,1732552050218,-300.0,0.00021623,2]
[343302981,1732552050240,-300.0,0.00021623,2]
[343302982,1732552050262,-674.54,0.00021624,2]
[343302983,1732552050285,-500.0,0.00021624,2]
[343302984,1732552050308,-589.42,0.00021624,2]
[343302985,1732552050330,-500.0,0.00021624,2]
[343302986,1732552050352,-500.0,0.00021624,2]
[343302987,1732552050374,-502.19825277,0.00021624,2]
[343302988,1732552050398,-500.0,0.00021624,2]
[343302989,1732552050420,-500.0,0.00021624,2]
[343302990,1732552050441,-500.0,0.00021624,2]
[343302991,1732552050462,-500.0,0.00021624,2]
[343302992,1732552050485,-500.0,0.00021624,2]
[343302993,1732552050508,-500.0,0.00021624,2]
[343302994,1732552050534,-500.0,0.00021624,2]
[343302995,1732552050556,-500.0,0.00021624,2]
[343302996,1732552050580,-500.0,0.00021624,2]
[343302997,1732552050601,-500.0,0.00021624,2]
[343302998,1732552050625,-1778.68,0.00021624,2]
[343302999,1732552050653,-520.49,0.00021624,2]
[343303000,1732552050677,-500.0,0.00021624,2]
[343303001,1732552050700,-500.0,0.00021624,2]
[343303002,1732552050724,-500.0,0.00021624,2]
[343303003,1732552050748,-500.0,0.00021624,2]
[343303004,1732552050771,-506.30583531,0.00021624,2]
[343303005,1732552050796,-1822.9,0.00021624,2]
[343303006,1732552050821,-500.0,0.00021624,2]
[343303007,1732552050845,-500.0,0.00021624,2]
[343303008,1732552050869,-566.69,0.00021624,2]
[343303009,1732552050891,-500.0,0.00021624,2]
[343303010,1732552050919,-564.55,0.00021624,2]
[343303011,1732552050941,-500.0,0.00021624,2]
[343303012,1732552050964,-45.07760687,0.00021624,2]
[343303013,1732552063701,6851.683459,0.00020835,2]
[343303015,1732552090387,1266.146378,0.00020739,2]
[343303020,1732552125279,3556.59841123,0.00026,30]
[343303021,1732552125303,77988.94851688,0.00026,30]
[343303026,1732552136547,24900.0,0.00020672,2]
[343303028,1732552148010,524.017211,0.00020672,2]
[343303142,1732552233393,-172.01020112,0.0002152,2]
[343303153,1732552233493,-6679.67325788,0.0002152,2]
[343303155,1732552233503,-580.76304853,0.00021524,2]
[343303157,1732552233514,-300.0,0.00021621,2]
[343303159,1732552233524,-300.0,0.00021621,2]
[343303161,1732552233535,-9566.0,0.00021622,2]
[343303163,1732552233545,-500.0,0.00021623,2]
[343303165,1732552233556,-1841.34,0.00021623,2]
[343303167,1732552233567,-612.37,0.00021623,2]
[343303169,1732552233577,-1928.04,0.00021623,2]
[343303171,1732552233591,-167.02427896,0.00021623,2]
[343303186,1732552233728,-500.0,0.00021623,2]
[343303188,1732552233739,-500.0,0.00021623,2]
[343303190,1732552233749,-603.53,0.00021623,2]
[343303192,1732552233759,-500.0,0.00021623,2]
[343303194,1732552233769,-500.0,0.00021623,2]
[343303196,1732552233784,-500.0,0.00021623,2]
[343303198,1732552233799,-231.89855814,0.00021624,2]
[343303200,1732552233811,-500.0,0.00021624,2]
[343303202,1732552233821,-500.0,0.00021624,2]
[343303204,1732552233831,-500.0,0.00021624,2]
[343303206,1732552233841,-500.0,0.00021624,2]
[343303208,1732552233851,-500.0,0.00021624,2]
[343303210,1732552233861,-500.0,0.00021624,2]
[343303212,1732552233871,-500.0,0.00021624,2]
[343303214,1732552233881,-500.0,0.00021624,2]
[343303216,1732552233890,-500.0,0.00021624,2]
[343303218,1732552233901,-500.0,0.00021624,2]
[343303220,1732552233911,-500.0,0.00021624,2]
[343303222,1732552233920,-500.0,0.00021624,2]
[343303224,1732552233930,-506.4728693,0.00021624,2]
[343303226,1732552233941,-500.0,0.00021624,2]
[343303228,1732552233950,-552.35,0.00021624,2]
[343303230,1732552233960,-9538.03,0.00021624,2]
[343303232,1732552233970,-500.0,0.00021624,2]
[343303233,1732552233979,-500.0,0.00021624,2]
[343303235,1732552233989,-500.0,0.00021624,2]
[343303237,1732552233999,-500.0,0.00021624,2]
[343303239,1732552234009,-500.0,0.00021624,2]
[343303242,1732552234020,-500.0,0.00021624,2]
[343303244,1732552234034,-500.0,0.00021624,2]
[343303246,1732552234045,-500.0,0.00021624,2]
[343303248,1732552234055,-500.0,0.00021624,2]
[343303250,1732552234065,-621.28,0.00021624,2]
[343303252,1732552234075,-500.0,0.00021624,2]
[343303254,1732552234085,-560.19,0.00021624,2]
[343303256,1732552234095,-500.0,0.00021624,2]
[343303258,1732552234106,-500.0,0.00021624,2]
[343303259,1732552234117,-500.0,0.00021624,2]
[343303260,1732552234127,-500.0,0.00021624,2]
[343303261,1732552234137,-500.0,0.00021624,2]
[343303262,1732552234147,-500.0,0.00021624,2]
[343303263,1732552234157,-500.0,0.00021624,2]
[343303264,1732552234167,-500.0,0.00021624,2]
[343303265,1732552234177,-500.0,0.00021624,2]
[343303266,1732552234186,-500.0,0.00021624,2]
[343303267,1732552234196,-500.0,0.00021624,2]
[343303268,1732552234206,-347.65414912,0.00021624,2]
[343303269,1732552234216,-500.0,0.00021624,2]
[343303270,1732552234227,-500.0,0.00021624,2]
[343303271,1732552234237,-500.0,0.00021624,2]
[343303272,1732552234246,-465.68436804,0.00021624,2]
[343303273,1732552234256,-500.0,0.00021624,2]
[343303274,1732552234266,-500.0,0.00021624,2]
[343303275,1732552234279,-567.3191632,0.00021624,2]
[343303276,1732552234289,-500.0,0.00021624,2]
[343303277,1732552234298,-500.0,0.00021624,2]
[343303278,1732552234309,-500.0,0.00021624,2]
[343303279,1732552234320,-247.47017703,0.00021624,2]
[343303280,1732552234330,-500.0,0.00021624,2]
[343303281,1732552234340,-677.04,0.00021886,3]
[343303282,1732552234350,-451.36,0.00021887,3]
[343303283,1732552234360,-225.68,0.00021888,3]
[343303284,1732552234370,-500.0,0.00021895,2]
[343303285,1732552234380,-500.0,0.00021895,2]
[343303286,1732552234391,-500.0,0.00021895,2]
[343303287,1732552234401,-500.0,0.00021895,2]
[343303288,1732552234412,-500.0,0.00021895,2]
[343303289,1732552234422,-500.0,0.00021895,2]
[343303290,1732552234432,-500.0,0.00021895,2]
[343303291,1732552234442,-444.69494463,0.00021895,2]
[343303292,1732552234452,-500.0,0.00021895,2]
[343303293,1732552234461,-500.0,0.00021895,2]
[343303294,1732552234472,-500.0,0.00021895,2]
[343303295,1732552234481,-500.0,0.00021895,2]
[343303296,1732552234491,-500.0,0.00021895,2]
[343303297,1732552234501,-500.0,0.00021895,2]
[343303298,1732552234512,-500.0,0.00021895,2]
[343303299,1732552234522,-500.0,0.00021895,2]
[343303300,1732552234535,-500.0,0.00021895,2]
[343303301,1732552234546,-500.0,0.00021895,2]
[343303302,1732552234557,-500.0,0.00021895,2]
[343303303,1732552234568,-500.0,0.00021895,2]
[343303304,1732552234579,-500.0,0.00021895,2]
[343303306,1732552234589,-500.0,0.00021895,2]
[343303307,1732552234603,-500.0,0.00021895,2]
[343303308,1732552234614,-500.0,0.00021895,2]
[343303309,1732552234625,-621.73218649,0.00021895,2]
[343303310,1732552234638,-500.0,0.00021895,2]
[343303311,1732552234649,-500.0,0.00021895,2]
[343303312,1732552234661,-500.0,0.00021895,2]
[343303313,1732552234673,-500.0,0.00021895,2]
[343303314,1732552234685,-500.0,0.00021895,2]
[343303315,1732552234696,-500.0,0.00021895,2]
[343303316,1732552234707,-219.00178224,0.00021895,2]
[343303317,1732552234719,-369.21697171,0.00021895,2]
[343303318,1732552234731,-500.0,0.00021895,2]
[343303319,1732552234743,-500.0,0.00021895,2]
[343303320,1732552234754,-500.0,0.00021895,2]
[343303321,1732552234766,-500.0,0.00021895,2]
[343303322,1732552234783,-500.0,0.00021895,2]
[343303323,1732552234796,-500.0,0.00021895,2]
[343303324,1732552234808,-500.0,0.00021895,2]
[343303325,1732552234820,-500.0,0.00021895,2]
[343303326,1732552234833,-500.0,0.00021895,2]
[343303327,1732552234845,-500.0,0.00021895,2]
[343303328,1732552234856,-500.0,0.00021895,2]
[343303329,1732552234866,-500.0,0.00021897,2]
[343303330,1732552234877,-1841.34,0.00021897,2]
[343303331,1732552234888,-612.37,0.00021897,2]
[343303332,1732552234897,-1928.04,0.00021897,2]
[343303333,1732552234907,-500.0,0.00021897,2]
[343303334,1732552234917,-500.0,0.00021897,2]
[343303335,1732552234927,-603.53,0.00021897,2]
[343303336,1732552234938,-500.0,0.00021897,2]
[343303337,1732552234948,-500.0,0.00021897,2]
[343303338,1732552234958,-674.54,0.00021898,2]
[343303339,1732552234968,-500.0,0.00021898,2]
[343303340,1732552234978,-589.42,0.00021898,2]
[343303341,1732552234987,-383.39608508,0.00021898,2]
[343303342,1732552234997,-579.36543951,0.00021898,2]
[343303343,1732552235006,-500.0,0.00021898,2]
[343303344,1732552235016,-500.0,0.00021898,2]
[343303345,1732552235032,-500.0,0.00021898,2]
[343303346,1732552235044,-500.0,0.00021898,2]
[343303347,1732552235054,-500.0,0.00021898,2]
[343303348,1732552235065,-500.0,0.00021898,2]
[343303349,1732552235075,-520.49,0.00021898,2]
[343303350,1732552235085,-500.0,0.00021898,2]
[343303351,1732552235095,-500.0,0.00021898,2]
[343303352,1732552235105,-500.0,0.00021898,2]
[343303353,1732552235116,-500.0,0.00021898,2]